[Event "*** Titled Tuesday 3|2 Blitz"]
[Site "Chess.com"]
[Date "2015.03.03"]
[Round "1"]
[White "AUSSIE_PINOY"]
[Black "megarompa"]
[Result "0-1"]
[WhiteElo "2213"]
[BlackElo "2646"]
[TimeControl "180+2"]
[EndTime "11:06:28 PST"]
[Termination "megarompa won by resignation"]

1. d4 {[%clk 0:02:52]} 1... d5 {[%clk 0:02:58.7]} 2. Nf3 {[%clk 0:02:53.1]} 2...
e6 {[%clk 0:03:00]} 3. c4 {[%clk 0:02:54]} 3... Nf6 {[%clk 0:03:00.8]} 4. Nc3
{[%clk 0:02:53.7]} 4... Bb4 {[%clk 0:03:02.3]} 5. Bg5 {[%clk 0:02:53.9]} 5... h6
{[%clk 0:03:02.8]} 6. Bh4 {[%clk 0:02:54.5]} 6... c5 {[%clk 0:03:01.5]} 7. e3
{[%clk 0:02:53.8]} 7... g5 {[%clk 0:02:59.3]} 8. Bg3 {[%clk 0:02:54]} 8... Ne4
{[%clk 0:03:01]} 9. Nd2 {[%clk 0:02:51]} 9... Nxc3 {[%clk 0:02:59.1]} 10. bxc3
{[%clk 0:02:51.7]} 10... Bxc3 {[%clk 0:03:01]} 11. Rc1 {[%clk 0:02:52.6]} 11...
cxd4 {[%clk 0:03:01.8]} 12. cxd5 {[%clk 0:02:42.7]} 12... Qxd5 {[%clk 0:02:53]}
13. exd4 {[%clk 0:02:11.5]} 13... Qxd4 {[%clk 0:02:46]} 14. Bb5+ {[%clk
0:01:57.7]} 14... Nc6 {[%clk 0:02:41.2]} 15. O-O {[%clk 0:01:33.9]} 15... Bxd2
{[%clk 0:02:25.6]} 16. Rc4 {[%clk 0:01:25.5]} 16... Qd5 {[%clk 0:02:22.5]} 17.
Qa4 {[%clk 0:01:26.2]} 17... Bd7 {[%clk 0:02:06]} 18. Rd1 {[%clk 0:01:22.2]}
18... O-O {[%clk 0:02:01.1]} 19. h4 {[%clk 0:01:18]} 19... Rac8 {[%clk
0:01:47.1]} 20. hxg5 {[%clk 0:01:14.5]} 20... hxg5 {[%clk 0:01:47]} 21. Rg4
{[%clk 0:00:39.1]} 21... a6 {[%clk 0:01:29.4]} 22. Bc4 {[%clk 0:00:35]} 22...
Qf5 {[%clk 0:01:30.3]} 23. Bd3 {[%clk 0:00:17.5]} 23... Ne5 {[%clk 0:01:28.4]}
24. Bxf5 {[%clk 0:00:17.8]} 24... Bxa4 {[%clk 0:01:29.1]} 25. Rxd2 {[%clk
0:00:19.1]} 25... Nxg4 {[%clk 0:01:25.5]} 26. Bxg4 {[%clk 0:00:19.2]} 26... f5
{[%clk 0:01:26.7]} 27. Bf3 {[%clk 0:00:18.9]} 27... f4 {[%clk 0:01:27.2]} 28.
Bh2 {[%clk 0:00:20]} 28... Rc1+ {[%clk 0:01:27.8]} 0-1

[Event "*** Titled Tuesday 3|2 Blitz"]
[Site "Chess.com"]
[Date "2015.03.03"]
[Round "1"]
[White "DanielNaroditsky"]
[Black "iFrancisco"]
[Result "1-0"]
[WhiteElo "2588"]
[BlackElo "2209"]
[TimeControl "180+2"]
[EndTime "11:07:01 PST"]
[Termination "DanielNaroditsky won by resignation"]

1. e4 {[%clk 0:02:57.1]} 1... e5 {[%clk 0:02:53.6]} 2. Nf3 {[%clk 0:02:58.3]}
2... Nc6 {[%clk 0:02:54.5]} 3. Bb5 {[%clk 0:03:00]} 3... a6 {[%clk 0:02:55.7]}
4. Ba4 {[%clk 0:03:01.4]} 4... Nf6 {[%clk 0:02:57.3]} 5. O-O {[%clk 0:03:02.8]}
5... Nxe4 {[%clk 0:02:58.5]} 6. Re1 {[%clk 0:03:03.3]} 6... Nc5 {[%clk
0:02:59.2]} 7. Bxc6 {[%clk 0:03:03.9]} 7... dxc6 {[%clk 0:03:01.1]} 8. Nxe5
{[%clk 0:03:05.6]} 8... Be7 {[%clk 0:03:02.5]} 9. d4 {[%clk 0:03:06.8]} 9... Ne6
{[%clk 0:03:04.2]} 10. Be3 {[%clk 0:03:08.1]} 10... O-O {[%clk 0:03:05.2]} 11.
c3 {[%clk 0:03:09.8]} 11... f6 {[%clk 0:03:03.7]} 12. Nf3 {[%clk 0:03:10.4]}
12... f5 {[%clk 0:03:05.3]} 13. Ne5 {[%clk 0:03:07]} 13... f4 {[%clk 0:03:00.3]}
14. Bc1 {[%clk 0:03:07.7]} 14... Ng5 {[%clk 0:02:46]} 15. Nd2 {[%clk 0:03:05]}
15... Kh8 {[%clk 0:02:17.7]} 16. Ndf3 {[%clk 0:03:00]} 16... Bd6 {[%clk
0:01:58.1]} 17. Nxg5 {[%clk 0:02:21.5]} 17... Qxg5 {[%clk 0:02:00]} 18. Qf3
{[%clk 0:02:22.9]} 18... Be6 {[%clk 0:01:24.6]} 19. g3 {[%clk 0:02:23.1]} 19...
Bd5 {[%clk 0:01:14.4]} 20. Bxf4 {[%clk 0:02:23.6]} 20... Bxe5 {[%clk 0:01:00.9]}
21. Bxg5 {[%clk 0:02:23.3]} 21... Bxf3 {[%clk 0:00:56]} 22. Rxe5 {[%clk
0:02:25.2]} 22... Rae8 {[%clk 0:00:57.2]} 23. Rae1 {[%clk 0:02:23.1]} 23... Rxe5
{[%clk 0:00:58.3]} 24. Rxe5 {[%clk 0:02:22.3]} 24... h6 {[%clk 0:01:00.2]} 25.
Bf4 {[%clk 0:02:19.3]} 25... Bd5 {[%clk 0:01:00.9]} 26. b3 {[%clk 0:02:17.2]}
26... Kg8 {[%clk 0:00:49.5]} 27. Re7 {[%clk 0:02:16.7]} 27... Rf7 {[%clk
0:00:49.4]} 28. Rxc7 {[%clk 0:02:08.9]} 28... Rxc7 {[%clk 0:00:49.6]} 29. Bxc7
{[%clk 0:02:10.4]} 29... b5 {[%clk 0:00:51.5]} 30. g4 {[%clk 0:02:05.1]} 30...
Bf3 {[%clk 0:00:52.1]} 31. h3 {[%clk 0:02:06.2]} 31... Kf7 {[%clk 0:00:52.8]}
32. Kh2 {[%clk 0:02:05.3]} 32... h5 {[%clk 0:00:51.7]} 33. Kg3 {[%clk
0:02:05.6]} 33... hxg4 {[%clk 0:00:52]} 34. hxg4 {[%clk 0:02:07.3]} 34... Be4
{[%clk 0:00:53.9]} 35. a3 {[%clk 0:01:49.5]} 35... Bc2 {[%clk 0:00:54.5]} 36. b4
{[%clk 0:01:50.9]} 36... Ke6 {[%clk 0:00:54.4]} 37. Kf4 {[%clk 0:01:48.5]} 37...
Kd5 {[%clk 0:00:45]} 38. Kg5 {[%clk 0:01:45.7]} 38... Ke4 {[%clk 0:00:39]} 39.
Be5 {[%clk 0:01:44.1]} 39... g6 {[%clk 0:00:28.3]} 40. Kxg6 {[%clk 0:01:33.2]}
40... Kf3+ {[%clk 0:00:26.7]} 41. Kh5 {[%clk 0:01:34.8]} 1-0

[Event "*** Titled Tuesday 3|2 Blitz"]
[Site "Chess.com"]
[Date "2015.03.03"]
[Round "1"]
[White "patzerplay"]
[Black "AlexanderL"]
[Result "0-1"]
[WhiteElo "2153"]
[BlackElo "2504"]
[TimeControl "180+2"]
[EndTime "11:07:13 PST"]
[Termination "AlexanderL won by checkmate"]

1. e4 {[%clk 0:02:59.1]} 1... e6 {[%clk 0:02:58.5]} 2. d4 {[%clk 0:02:59.9]}
2... d5 {[%clk 0:02:59.3]} 3. Nc3 {[%clk 0:03:01.2]} 3... Bb4 {[%clk 0:03:00.1]}
4. Ne2 {[%clk 0:03:02]} 4... Nf6 {[%clk 0:02:57.5]} 5. e5 {[%clk 0:02:42.3]}
5... Nfd7 {[%clk 0:02:58.3]} 6. a3 {[%clk 0:02:37.5]} 6... Be7 {[%clk
0:02:58.4]} 7. f4 {[%clk 0:02:17.1]} 7... c5 {[%clk 0:02:58.5]} 8. Be3 {[%clk
0:02:17.6]} 8... Nc6 {[%clk 0:02:56.3]} 9. g3 {[%clk 0:02:18.2]} 9... Qb6 {[%clk
0:02:53.9]} 10. Rb1 {[%clk 0:02:17.4]} 10... cxd4 {[%clk 0:02:40.1]} 11. Nxd4
{[%clk 0:02:16]} 11... Bc5 {[%clk 0:02:40.4]} 12. Nce2 {[%clk 0:02:06.7]} 12...
a5 {[%clk 0:02:18.5]} 13. Bg2 {[%clk 0:01:58.8]} 13... O-O {[%clk 0:02:10.6]}
14. c3 {[%clk 0:01:52.8]} 14... a4 {[%clk 0:02:10.3]} 15. Qd3 {[%clk 0:01:51.5]}
15... f6 {[%clk 0:02:03.7]} 16. Nxe6 {[%clk 0:01:39.9]} 16... Bxe3 {[%clk
0:02:04.4]} 17. Nxf8 {[%clk 0:01:41.3]} 17... Nxf8 {[%clk 0:02:05.2]} 18. Bxd5+
{[%clk 0:01:42.4]} 18... Kh8 {[%clk 0:01:47.3]} 19. exf6 {[%clk 0:01:42.2]}
19... gxf6 {[%clk 0:01:46.3]} 20. Be4 {[%clk 0:01:15.2]} 20... Be6 {[%clk
0:01:46.2]} 21. Rd1 {[%clk 0:00:46.3]} 21... Rd8 {[%clk 0:01:45.8]} 22. Qb1
{[%clk 0:00:47.5]} 22... Rxd1+ {[%clk 0:01:28.9]} 23. Kxd1 {[%clk 0:00:48.4]}
23... Na5 {[%clk 0:01:14.4]} 24. Ke1 {[%clk 0:00:26.4]} 24... Nc4 {[%clk
0:01:12.4]} 25. f5 {[%clk 0:00:21]} 25... Bf2+ {[%clk 0:01:09.9]} 26. Kd1 {[%clk
0:00:22.2]} 26... Qd6+ {[%clk 0:01:06]} 27. Nd4 {[%clk 0:00:17.2]} 27... Bxd4
{[%clk 0:00:58.5]} 28. cxd4 {[%clk 0:00:19.1]} 28... Qxd4+ {[%clk 0:00:58.3]}
29. Bd3 {[%clk 0:00:16.5]} 29... Bxf5 {[%clk 0:00:58.2]} 30. Ke2 {[%clk
0:00:18.4]} 30... Qe3+ {[%clk 0:00:58.4]} 31. Kf1 {[%clk 0:00:13]} 31... Bh3#
{[%clk 0:00:58.3]} 0-1

[Event "*** Titled Tuesday 3|2 Blitz"]
[Site "Chess.com"]
[Date "2015.03.03"]
[Round "1"]
[White "pedromartinez91"]
[Black "Ar4uha"]
[Result "1-0"]
[WhiteElo "2149"]
[BlackElo "2467"]
[TimeControl "180+2"]
[EndTime "11:07:17 PST"]
[Termination "pedromartinez91 won by checkmate"]

1. e4 {[%clk 0:02:59]} 1... c5 {[%clk 0:02:56.2]} 2. Nf3 {[%clk 0:03:00.1]} 2...
d6 {[%clk 0:02:57.7]} 3. Bb5+ {[%clk 0:03:01]} 3... Bd7 {[%clk 0:02:58.5]} 4.
Bxd7+ {[%clk 0:03:02]} 4... Qxd7 {[%clk 0:03:00.3]} 5. O-O {[%clk 0:03:03.2]}
5... Nc6 {[%clk 0:03:01.9]} 6. c3 {[%clk 0:03:04.2]} 6... Nf6 {[%clk 0:03:03.3]}
7. d4 {[%clk 0:03:05.5]} 7... Nxe4 {[%clk 0:03:03.2]} 8. d5 {[%clk 0:03:05.4]}
8... Ne5 {[%clk 0:03:04.6]} 9. Re1 {[%clk 0:03:06.6]} 9... Nf6 {[%clk
0:03:05.2]} 10. Nxe5 {[%clk 0:03:07.1]} 10... dxe5 {[%clk 0:03:05.6]} 11. Rxe5
{[%clk 0:03:08.2]} 11... e6 {[%clk 0:03:06.6]} 12. c4 {[%clk 0:03:09.1]} 12...
Bd6 {[%clk 0:03:04.8]} 13. Re1 {[%clk 0:03:09.8]} 13... O-O-O {[%clk 0:03:05.9]}
14. Nc3 {[%clk 0:03:09]} 14... Rhe8 {[%clk 0:03:05]} 15. Bg5 {[%clk 0:03:06.2]}
15... h6 {[%clk 0:03:01.2]} 16. Bxf6 {[%clk 0:03:06.3]} 16... gxf6 {[%clk
0:03:02.8]} 17. Qf3 {[%clk 0:03:05.3]} 17... Be5 {[%clk 0:03:00.9]} 18. Rad1
{[%clk 0:03:02]} 18... Bd4 {[%clk 0:02:51.6]} 19. Nb5 {[%clk 0:02:52.4]} 19...
exd5 {[%clk 0:02:44.9]} 20. Rxe8 {[%clk 0:02:52.4]} 20... Rxe8 {[%clk
0:02:41.6]} 21. Nxd4 {[%clk 0:02:52.1]} 21... cxd4 {[%clk 0:02:38.9]} 22. cxd5
{[%clk 0:02:53.1]} 22... Re5 {[%clk 0:02:33.1]} 23. Qxf6 {[%clk 0:02:14]} 23...
Rxd5 {[%clk 0:02:31.2]} 24. g3 {[%clk 0:01:53.7]} 24... a6 {[%clk 0:02:29.1]}
25. Qh8+ {[%clk 0:01:50.6]} 25... Kc7 {[%clk 0:02:28]} 26. Qxh6 {[%clk
0:01:46.7]} 26... d3 {[%clk 0:02:23.2]} 27. Qf4+ {[%clk 0:01:47.1]} 27... Kb6
{[%clk 0:02:24.4]} 28. Qe3+ {[%clk 0:01:47.7]} 28... Kc7 {[%clk 0:02:24.8]} 29.
Qf4+ {[%clk 0:01:48]} 29... Kb6 {[%clk 0:02:24.8]} 30. Qe3+ {[%clk 0:01:44.1]}
30... Kc7 {[%clk 0:02:25.9]} 31. h4 {[%clk 0:01:45.1]} 31... d2 {[%clk
0:02:25.7]} 32. h5 {[%clk 0:01:44.8]} 32... Rxh5 {[%clk 0:01:00.6]} 33. Rxd2
{[%clk 0:01:40.4]} 33... Qc6 {[%clk 0:01:01.3]} 34. Qf4+ {[%clk 0:01:33.4]}
34... Kb6 {[%clk 0:01:02.2]} 35. Qd4+ {[%clk 0:01:30.9]} 35... Ka5 {[%clk
0:00:44]} 36. b4+ {[%clk 0:01:26.6]} 36... Kb5 {[%clk 0:00:28.7]} 37. a4+ {[%clk
0:01:26.4]} 37... Kxa4 {[%clk 0:00:30.2]} 38. b5+ {[%clk 0:01:17.9]} 38... Kxb5
{[%clk 0:00:31.3]} 39. Rb2+ {[%clk 0:01:17.9]} 39... Ka5 {[%clk 0:00:32.8]} 40.
Qb4# {[%clk 0:01:18.8]} 1-0

[Event "*** Titled Tuesday 3|2 Blitz"]
[Site "Chess.com"]
[Date "2015.03.03"]
[Round "1"]
[White "LADIESGET2KNOWME"]
[Black "Aragon"]
[Result "0-1"]
[WhiteElo "2286"]
[BlackElo "1968"]
[TimeControl "180+2"]
[EndTime "11:07:18 PST"]
[Termination "Aragon won by checkmate"]

1. d4 {[%clk 0:02:42]} 1... d5 {[%clk 0:02:51.3]} 2. Nc3 {[%clk 0:02:39.7]} 2...
e6 {[%clk 0:02:51.9]} 3. e4 {[%clk 0:02:39.8]} 3... c6 {[%clk 0:02:52.1]} 4. Nf3
{[%clk 0:02:39.7]} 4... Nf6 {[%clk 0:02:51.9]} 5. e5 {[%clk 0:02:39]} 5... Nfd7
{[%clk 0:02:52.9]} 6. Bd3 {[%clk 0:02:40.6]} 6... c5 {[%clk 0:02:52.4]} 7. dxc5
{[%clk 0:02:41.4]} 7... Nc6 {[%clk 0:02:51.1]} 8. Bf4 {[%clk 0:02:40.8]} 8...
Nxc5 {[%clk 0:02:51.2]} 9. O-O {[%clk 0:02:41.3]} 9... Nxd3 {[%clk 0:02:51.2]}
10. cxd3 {[%clk 0:02:40.2]} 10... d4 {[%clk 0:02:50.9]} 11. Ne4 {[%clk
0:02:40.4]} 11... Be7 {[%clk 0:02:51.7]} 12. Rc1 {[%clk 0:02:38.2]} 12... O-O
{[%clk 0:02:51.5]} 13. Qd2 {[%clk 0:02:31.8]} 13... Qd5 {[%clk 0:02:47.1]} 14.
a3 {[%clk 0:02:27.4]} 14... Rd8 {[%clk 0:02:36.3]} 15. h4 {[%clk 0:02:25.3]}
15... Bf8 {[%clk 0:02:32.7]} 16. h5 {[%clk 0:02:25.1]} 16... h6 {[%clk
0:02:31.6]} 17. Rc2 {[%clk 0:02:20.9]} 17... b6 {[%clk 0:02:31.2]} 18. Rfc1
{[%clk 0:02:20.7]} 18... Bb7 {[%clk 0:02:32.4]} 19. b4 {[%clk 0:02:12.2]} 19...
Rd7 {[%clk 0:02:31.5]} 20. Qe2 {[%clk 0:02:07.4]} 20... Ne7 {[%clk 0:02:29.6]}
21. Ng3 {[%clk 0:02:02.7]} 21... Rad8 {[%clk 0:02:24.9]} 22. Qd2 {[%clk
0:01:44.6]} 22... Qb5 {[%clk 0:02:21.5]} 23. Rc7 {[%clk 0:01:40.4]} 23... Bxf3
{[%clk 0:02:20.9]} 24. gxf3 {[%clk 0:01:39.9]} 24... Nd5 {[%clk 0:02:17.7]} 25.
R7c4 {[%clk 0:01:23.9]} 25... a5 {[%clk 0:02:11.3]} 26. Ne4 {[%clk 0:01:17.3]}
26... axb4 {[%clk 0:02:09.2]} 27. axb4 {[%clk 0:01:19.2]} 27... Bxb4 {[%clk
0:02:08.8]} 28. Qb2 {[%clk 0:01:17.8]} 28... Nxf4 {[%clk 0:01:44.9]} 29. Rxb4
{[%clk 0:01:17.6]} 29... Qxe5 {[%clk 0:01:45]} 30. Qd2 {[%clk 0:01:06.3]} 30...
Nxh5 {[%clk 0:01:38.9]} 31. Rxb6 {[%clk 0:00:58.6]} 31... Nf4 {[%clk 0:01:36]}
32. Rc5 {[%clk 0:00:56.4]} 32... Rd5 {[%clk 0:01:36.1]} 33. Rxd5 {[%clk
0:00:55.1]} 33... exd5 {[%clk 0:01:35.1]} 34. Ng3 {[%clk 0:00:53]} 34... Re8
{[%clk 0:01:34.4]} 35. Rb7 {[%clk 0:00:44.7]} 35... Qg5 {[%clk 0:01:33.5]} 36.
Kf1 {[%clk 0:00:41]} 36... Qh4 {[%clk 0:01:29.9]} 37. Kg1 {[%clk 0:00:36.6]}
37... Qh3 {[%clk 0:01:27.7]} 38. Qxf4 {[%clk 0:00:21.4]} 38... Re1+ {[%clk
0:01:26.5]} 39. Nf1 {[%clk 0:00:19.9]} 39... Rxf1# {[%clk 0:01:24.8]} 0-1

[Event "*** Titled Tuesday 3|2 Blitz"]
[Site "Chess.com"]
[Date "2015.03.03"]
[Round "1"]
[White "Irochka83"]
[Black "Hafez_Bakr"]
[Result "1-0"]
[WhiteElo "2281"]
[BlackElo "1832"]
[TimeControl "180+2"]
[EndTime "11:07:37 PST"]
[Termination "Irochka83 won by resignation"]

1. Nf3 {[%clk 0:02:21.8]} 1... c5 {[%clk 0:02:58.1]} 2. c4 {[%clk 0:02:21.2]}
2... d6 {[%clk 0:03:00]} 3. d4 {[%clk 0:02:21.8]} 3... cxd4 {[%clk 0:02:59.4]}
4. Nxd4 {[%clk 0:02:23.7]} 4... Nc6 {[%clk 0:02:59.8]} 5. e4 {[%clk 0:02:24]}
5... Bd7 {[%clk 0:02:59.7]} 6. Nc3 {[%clk 0:02:24.1]} 6... Nf6 {[%clk
0:03:00.3]} 7. Be2 {[%clk 0:02:24.7]} 7... g6 {[%clk 0:03:00.4]} 8. Be3 {[%clk
0:02:25]} 8... Bg7 {[%clk 0:03:01]} 9. O-O {[%clk 0:02:25.4]} 9... O-O {[%clk
0:03:00.2]} 10. f3 {[%clk 0:02:26]} 10... a6 {[%clk 0:03:00.3]} 11. Qd2 {[%clk
0:02:25.8]} 11... Rc8 {[%clk 0:03:01.3]} 12. Rac1 {[%clk 0:02:23.5]} 12... Re8
{[%clk 0:02:59.3]} 13. Rfd1 {[%clk 0:02:22.7]} 13... Qa5 {[%clk 0:02:56.7]} 14.
b3 {[%clk 0:02:22.3]} 14... Nxd4 {[%clk 0:02:54.3]} 15. Bxd4 {[%clk 0:02:22.9]}
15... Bc6 {[%clk 0:02:53.9]} 16. Kh1 {[%clk 0:02:18.4]} 16... Qh5 {[%clk
0:02:53.3]} 17. Be3 {[%clk 0:02:13.8]} 17... Nd7 {[%clk 0:02:47.5]} 18. Nd5
{[%clk 0:02:14.3]} 18... Bxd5 {[%clk 0:02:46.5]} 19. exd5 {[%clk 0:02:14.7]}
19... Qh4 {[%clk 0:02:37.8]} 20. g3 {[%clk 0:01:59.5]} 20... Qh3 {[%clk
0:02:34.4]} 21. f4 {[%clk 0:01:56.6]} 21... Qf5 {[%clk 0:02:29]} 22. Bd3 {[%clk
0:01:55.4]} 22... Qg4 {[%clk 0:02:26.6]} 23. Qg2 {[%clk 0:01:53.3]} 23... Qh5
{[%clk 0:02:16]} 24. Be2 {[%clk 0:01:45]} 24... Qf5 {[%clk 0:02:11.8]} 25. g4
{[%clk 0:01:44.2]} 25... Qf6 {[%clk 0:02:10.6]} 26. g5 {[%clk 0:01:43.8]} 26...
Qb2 {[%clk 0:02:10.6]} 27. Bg4 {[%clk 0:01:40.2]} 27... Qxg2+ {[%clk 0:02:05.2]}
28. Kxg2 {[%clk 0:01:42.1]} 28... Rc7 {[%clk 0:01:16.1]} 29. b4 {[%clk 0:01:42]}
29... f5 {[%clk 0:01:04.2]} 30. gxf6 {[%clk 0:01:41.1]} 30... Nxf6 {[%clk
0:01:03.1]} 31. Be6+ {[%clk 0:01:41.9]} 31... Kf8 {[%clk 0:01:01.1]} 32. Bb6
{[%clk 0:01:39.6]} 32... Rcc8 {[%clk 0:00:59]} 33. Bxc8 {[%clk 0:01:40]} 33...
Rxc8 {[%clk 0:00:57.8]} 34. c5 {[%clk 0:01:41.6]} 34... dxc5 {[%clk 0:00:56.7]}
35. bxc5 {[%clk 0:01:42.2]} 35... Ng4 {[%clk 0:00:54.8]} 36. Kf3 {[%clk
0:01:39.4]} 36... h5 {[%clk 0:00:52.7]} 37. h3 {[%clk 0:01:39.2]} 37... Nh6
{[%clk 0:00:49.1]} 38. d6 {[%clk 0:01:39.9]} 38... exd6 {[%clk 0:00:47.1]} 39.
cxd6 {[%clk 0:01:40.5]} 39... Rxc1 {[%clk 0:00:45.6]} 40. Rxc1 {[%clk
0:01:40.2]} 40... Bf6 {[%clk 0:00:42.5]} 41. Rc8+ {[%clk 0:01:38.6]} 41... Kf7
{[%clk 0:00:41.5]} 42. d7 {[%clk 0:01:39.3]} 42... Nf5 {[%clk 0:00:35.9]} 43.
d8=Q {[%clk 0:01:35.4]} 43... Bxd8 {[%clk 0:00:34.6]} 44. Rxd8 {[%clk
0:01:36.7]} 1-0

[Event "*** Titled Tuesday 3|2 Blitz"]
[Site "Chess.com"]
[Date "2015.03.03"]
[Round "1"]
[White "kinetix"]
[Black "pKiLz5Rn9b"]
[Result "0-1"]
[WhiteElo "1512"]
[BlackElo "2254"]
[TimeControl "180+2"]
[EndTime "11:07:42 PST"]
[Termination "pKiLz5Rn9b won by resignation"]

1. e4 {[%clk 0:02:58.1]} 1... e6 {[%clk 0:02:58.6]} 2. d4 {[%clk 0:02:58.6]}
2... d5 {[%clk 0:02:59.7]} 3. Nc3 {[%clk 0:02:59.6]} 3... Nf6 {[%clk 0:03:00.7]}
4. e5 {[%clk 0:03:00.3]} 4... Nfd7 {[%clk 0:03:01.8]} 5. f4 {[%clk 0:03:01.6]}
5... c5 {[%clk 0:03:03]} 6. Nf3 {[%clk 0:03:00]} 6... Nc6 {[%clk 0:03:04.5]} 7.
Be3 {[%clk 0:03:00.3]} 7... a6 {[%clk 0:03:04.9]} 8. Qd2 {[%clk 0:02:58.8]} 8...
b5 {[%clk 0:03:05.7]} 9. dxc5 {[%clk 0:02:57.4]} 9... Bxc5 {[%clk 0:03:06.1]}
10. O-O-O {[%clk 0:02:46.6]} 10... Qb6 {[%clk 0:03:05.4]} 11. Bxc5 {[%clk
0:02:45.2]} 11... Nxc5 {[%clk 0:03:06.5]} 12. Bd3 {[%clk 0:02:38.5]} 12... b4
{[%clk 0:03:01.1]} 13. Ne2 {[%clk 0:02:38.9]} 13... a5 {[%clk 0:03:02.5]} 14.
Kb1 {[%clk 0:02:28.8]} 14... Nxd3 {[%clk 0:03:01.8]} 15. cxd3 {[%clk 0:02:28.9]}
15... Ba6 {[%clk 0:02:58.9]} 16. Ned4 {[%clk 0:02:28.3]} 16... Nxd4 {[%clk
0:02:58.8]} 17. Qf2 {[%clk 0:02:29.3]} 17... Rc8 {[%clk 0:02:55.6]} 18. Qxd4
{[%clk 0:02:27.6]} 18... Qb5 {[%clk 0:02:52]} 19. f5 {[%clk 0:02:22.2]} 19...
exf5 {[%clk 0:02:47.3]} 20. e6 {[%clk 0:02:20.8]} 20... f6 {[%clk 0:02:48.6]}
21. Nh4 {[%clk 0:02:12.9]} 21... Qc5 {[%clk 0:02:47.6]} 22. Nxf5 {[%clk
0:02:06.4]} 22... Qxd4 {[%clk 0:02:45.6]} 23. Nxd4 {[%clk 0:02:06.9]} 23... g6
{[%clk 0:02:47.2]} 24. Rhf1 {[%clk 0:01:58.8]} 24... Ke7 {[%clk 0:02:48.2]} 25.
Rf3 {[%clk 0:01:58.2]} 25... a4 {[%clk 0:02:44.7]} 26. g4 {[%clk 0:01:54.3]}
26... Rc7 {[%clk 0:02:38.8]} 27. g5 {[%clk 0:01:48.8]} 27... f5 {[%clk 0:02:40]}
28. Rh3 {[%clk 0:01:43.4]} 28... Kd6 {[%clk 0:02:36.7]} 29. Rc1 {[%clk
0:01:37.6]} 29... Rhc8 {[%clk 0:02:28.1]} 30. Rxc7 {[%clk 0:01:26.3]} 30... Rxc7
{[%clk 0:02:29.1]} 31. Re3 {[%clk 0:01:27.2]} 31... Re7 {[%clk 0:02:24.1]} 32.
Kc2 {[%clk 0:01:24.8]} 32... f4 {[%clk 0:02:20.8]} 33. Re1 {[%clk 0:01:21.7]}
33... f3 {[%clk 0:02:17.1]} 34. Nxf3 {[%clk 0:01:21.1]} 34... Rxe6 {[%clk
0:02:17.4]} 35. Rxe6+ {[%clk 0:01:17.9]} 35... Kxe6 {[%clk 0:02:18.1]} 36. Kd2
{[%clk 0:01:19.5]} 36... Kf5 {[%clk 0:02:18.3]} 37. Ke3 {[%clk 0:01:20.5]} 37...
Bb7 {[%clk 0:02:12.8]} 38. d4 {[%clk 0:01:18.9]} 38... Kg4 {[%clk 0:02:10.8]}
39. a3 {[%clk 0:01:16.4]} 39... bxa3 {[%clk 0:02:08.1]} 40. bxa3 {[%clk
0:01:17]} 40... Bc8 {[%clk 0:02:09.6]} 41. Kf2 {[%clk 0:00:48.2]} 41... Kf4
{[%clk 0:02:09.5]} 42. h4 {[%clk 0:00:48.2]} 42... Ke4 {[%clk 0:02:07]} 43. Kg3
{[%clk 0:00:46.8]} 43... Ke3 {[%clk 0:02:07.3]} 44. Ne5 {[%clk 0:00:35.8]} 44...
Kxd4 {[%clk 0:02:05.8]} 45. Nc6+ {[%clk 0:00:36.2]} 45... Ke3 {[%clk 0:02:03]}
46. Ne7 {[%clk 0:00:35.9]} 46... Be6 {[%clk 0:02:04]} 47. h5 {[%clk 0:00:29.8]}
47... gxh5 {[%clk 0:01:41.7]} 0-1

[Event "*** Titled Tuesday 3|2 Blitz"]
[Site "Chess.com"]
[Date "2015.03.03"]
[Round "1"]
[White "Gevorg_Harutjunyan"]
[Black "MattyDPerrine"]
[Result "1-0"]
[WhiteElo "2513"]
[BlackElo "2166"]
[TimeControl "180+2"]
[EndTime "11:08:13 PST"]
[Termination "Gevorg_Harutjunyan won by resignation"]

1. e4 {[%clk 0:02:57.9]} 1... c5 {[%clk 0:02:57.3]} 2. Nc3 {[%clk 0:02:57.1]}
2... Nc6 {[%clk 0:02:57.1]} 3. Bb5 {[%clk 0:02:57.6]} 3... Nd4 {[%clk
0:02:57.7]} 4. Bc4 {[%clk 0:02:58.8]} 4... e6 {[%clk 0:02:58.7]} 5. Nge2 {[%clk
0:03:00.1]} 5... Qc7 {[%clk 0:02:58.7]} 6. O-O {[%clk 0:03:00.7]} 6... Nf6
{[%clk 0:02:58.5]} 7. d3 {[%clk 0:03:01.2]} 7... Nc6 {[%clk 0:02:56.3]} 8. f4
{[%clk 0:03:01.6]} 8... d6 {[%clk 0:02:57.2]} 9. Ng3 {[%clk 0:02:56.6]} 9... h5
{[%clk 0:02:54.3]} 10. e5 {[%clk 0:02:51.7]} 10... dxe5 {[%clk 0:02:49.3]} 11.
Nb5 {[%clk 0:02:51]} 11... Qb8 {[%clk 0:02:21.7]} 12. fxe5 {[%clk 0:02:51.8]}
12... Nxe5 {[%clk 0:02:23]} 13. Bf4 {[%clk 0:02:51.6]} 13... h4 {[%clk 0:02:21]}
14. Qe2 {[%clk 0:02:47.7]} 14... Nfd7 {[%clk 0:02:19.3]} 15. Ne4 {[%clk
0:01:39.2]} 15... a6 {[%clk 0:02:13.5]} 16. Ng5 {[%clk 0:01:34.3]} 16... axb5
{[%clk 0:01:09.5]} 17. Bxb5 {[%clk 0:01:35.4]} 17... f6 {[%clk 0:00:52]} 18.
Nxe6 {[%clk 0:01:36.1]} 18... Qd6 {[%clk 0:00:48.5]} 19. Nxf8 {[%clk 0:01:26.1]}
19... Rxf8 {[%clk 0:00:50.4]} 20. Rae1 {[%clk 0:01:15.6]} 20... Ke7 {[%clk
0:00:46.9]} 21. Qg4 {[%clk 0:01:11]} 21... g5 {[%clk 0:00:40.5]} 22. Bd2 {[%clk
0:00:53.6]} 22... Qd4+ {[%clk 0:00:39.9]} 23. Qxd4 {[%clk 0:00:54]} 23... cxd4
{[%clk 0:00:41.8]} 24. Bb4+ {[%clk 0:00:55]} 24... Kf7 {[%clk 0:00:38.4]} 25.
Bxf8 {[%clk 0:00:49.9]} 25... Kxf8 {[%clk 0:00:40.3]} 26. a4 {[%clk 0:00:40.8]}
26... Kg7 {[%clk 0:00:39.7]} 27. Re4 {[%clk 0:00:40]} 27... Nc5 {[%clk
0:00:37.1]} 28. Rxd4 {[%clk 0:00:41.3]} 28... Ne6 {[%clk 0:00:34.8]} 29. Rb4
{[%clk 0:00:37.8]} 29... Rb8 {[%clk 0:00:32.4]} 30. d4 {[%clk 0:00:36.7]} 30...
Nd7 {[%clk 0:00:33.6]} 31. Re1 {[%clk 0:00:35.8]} 31... Nf4 {[%clk 0:00:33.9]}
32. Bxd7 {[%clk 0:00:35.8]} 32... Bxd7 {[%clk 0:00:35.8]} 33. Re7+ {[%clk
0:00:36.8]} 33... Kg6 {[%clk 0:00:37.7]} 34. Rxd7 {[%clk 0:00:38.2]} 34... Re8
{[%clk 0:00:38.8]} 35. g3 {[%clk 0:00:36.6]} 35... hxg3 {[%clk 0:00:39.8]} 36.
hxg3 {[%clk 0:00:38.5]} 36... Nh3+ {[%clk 0:00:40.4]} 37. Kf1 {[%clk 0:00:37.8]}
37... Re3 {[%clk 0:00:39.7]} 38. g4 {[%clk 0:00:37.4]} 38... Re4 {[%clk
0:00:38.7]} 39. Rbxb7 {[%clk 0:00:35]} 39... Rxg4 {[%clk 0:00:39.4]} 40. a5
{[%clk 0:00:36.5]} 40... Nf4 {[%clk 0:00:37.8]} 41. a6 {[%clk 0:00:35.7]} 41...
Rh4 {[%clk 0:00:39.1]} 42. a7 {[%clk 0:00:34.6]} 42... Rh1+ {[%clk 0:00:40.3]}
43. Kf2 {[%clk 0:00:36.1]} 43... Ra1 {[%clk 0:00:42.2]} 44. Rd8 {[%clk
0:00:35.1]} 44... Kf5 {[%clk 0:00:40.7]} 45. a8=Q {[%clk 0:00:35.5]} 45... Rxa8
{[%clk 0:00:41.7]} 46. Rxa8 {[%clk 0:00:37.3]} 46... g4 {[%clk 0:00:43.4]} 1-0